[Event "Svetozar Gligoric Masters 2022"]
[Site "Belgrade"]
[Date "2022.07.21"]
[Round "7.5"]
[White "Makarian, Rudik"]
[Black "Srihari L R"]
[Result "1/2-1/2"]
[ECO "E11"]
[WhiteElo "2533"]
[BlackElo "2431"]
[Annotator "TA"]
[PlyCount "104"]
[EventDate "2022.07.18"]
[EventCountry "SRB"]
[SourceTitle "playchess.com"]
[Source "ChessBase"]
[SourceQuality "1"]
[TimeControl "40/5400+30:900+30"]

{[%evp 12,104,22,25,46,59,54,37,41,38,52,38,77,78,77,69,72,76,77,76,84,91,113,108,102,116,111,111,111,107,116,116,142,132,161,122,133,124,158,139,146,150,197,168,164,162,171,154,156,150,155,159,169,143,143,141,137,141,156,83,81,90,81,85,88,83,87,89,86,53,88,90,91,70,71,76,182,189,189,140,154,104,122,18,18,18,18,18,68,0,0,0,0,0,0]} 1. d4 Nf6 2. c4 e6 3. g3 Bb4+ 4. Bd2 Bxd2+ 5. Qxd2 O-O 6. Bg2 d5 7. Nf3 dxc4 {E11: Bogo-Indian.} 8. Na3 Bd7 {[#]} 9. Ne5 $146 ({Predecessor:} 9. Nxc4 Bc6 10. O-O Be4 11. Qf4 Bd5 12. Rac1 Nc6 13. Rfe1 Ne7 14. Ncd2 Rc8 15. e4 {1-0 (42) Mareco,S (2580)-Giardelli,S (2346) Villa Martelli 2013}) 9... Bc6 {White is slightly better.} 10. Nxc6 Nxc6 11. e3 e5 {[%cal Re5d4]} 12. Bxc6 (12. Nxc4 $6 exd4 13. O-O-O (13. Bxc6 bxc6 14. Qxd4 Qxd4 $11) 13... dxe3 14. Qxe3 Qc8 $11) 12... c3 {[#]} 13. bxc3 bxc6 14. dxe5 Qxd2+ 15. Kxd2 Ne4+ 16. Ke2 Nxc3+ 17. Kf3 Nd5 18. Nc4 f6 19. Kg2 Rab8 20. exf6 Nxf6 21. Rac1 Ne4 22. Rc2 Rb5 {Prevents Ne5.} 23. f3 Nf6 24. f4 Rc5 25. Kf3 Nd5 26. Rb1 {Against Nb4} Rb5 (26... a5 $16) 27. Rbc1 Nb4 28. Rd2 Rc5 29. a3 Nd5 30. e4 Rb8 31. Rd3 {Inhibits Rb3.} ({Don't take} 31. exd5 $6 cxd5 32. Rdc2 Rb3+ 33. Kg4 (33. Ne3 Rxc2 34. Rxc2 d4 $11) 33... dxc4 $14) 31... Nb6 32. Rdc3 {Hoping for Ne5.} Na4 33. R3c2 Rb3+ {[#]} 34. Kg4 $1 g6 35. Ne5 (35. e5 $142) 35... Rxc2 $16 36. Rxc2 {[%mdl 4096] Endgame KRN-KRN} Nc3 37. f5 Nxe4 38. fxg6 hxg6 39. Rxc6 Rxa3 40. Nxg6 Kg7 41. Ne5 Rc3 42. Ra6 Rc2 43. h4 Rc3 (43... Rb2 $16 {might work better.}) 44. Kf4 $18 ({But not} 44. Rxa7 $6 Kf6 45. Kf4 Nxg3 $14) 44... Nc5 45. Rg6+ ({White should play} 45. Rxa7 $18 Kf6 46. Ra5 (46. Ng4+ Kg6 $16) 46... Ne6+ 47. Kg4) 45... Kh7 $16 {And now ...Nd3+ would win.} 46. h5 {White is more active.} (46. Rc6 $142) 46... a5 {[#]} 47. Rf6 (47. Kf5 $1 $16) 47... a4 $11 48. Rf7+ Kg8 $1 {White must now prevent ...Nd3+.} 49. Re7 a3 ({Better is} 49... Rb3 $1 $11) 50. h6 (50. Ng6 $1 $14 Rc4+ 51. Kf5) 50... Nd3+ {The position is equal.} 51. Nxd3 Rxd3 52. Rxc7 Rd4+ {Black escapes into a draw.  Weighted Error Value: White=0.15 (very precise) /Black=0.12 (very precise)} 1/2-1/2

[Event "Svetozar Gligoric Masters 2022"]
[Site "Belgrade"]
[Date "2022.07.21"]
[Round "7.6"]
[White "Arjun Kalyan"]
[Black "Muthaiah AL"]
[Result "1/2-1/2"]
[ECO "B11"]
[WhiteElo "2499"]
[BlackElo "2401"]
[Annotator "TA"]
[PlyCount "68"]
[EventDate "2022.07.18"]
[EventCountry "SRB"]
[SourceTitle "playchess.com"]
[Source "ChessBase"]
[SourceQuality "1"]
[TimeControl "40/5400+30:900+30"]

{[%evp 10,68,19,29,34,0,4,0,29,27,31,29,29,29,50,48,56,36,52,60,52,53,51,28,38,31,17,9,14,11,31,24,45,36,43,29,52,32,45,46,44,27,49,19,46,38,43,19,19,0,0,0,0,0,0,0,0,0,0,0,0]} 1. e4 c6 2. Nc3 d5 3. Nf3 dxe4 4. Nxe4 Nf6 5. Qe2 Nxe4 6. Qxe4 Qd5 {B11: Caro-Kann: Two Knights Variation.} 7. Qh4 Qe6+ 8. Be2 Qg4 9. Qg3 g6 10. Ng5 {[%cal Bf3g5,Bg5e4,Be4d6][%mdl 32]} Qxg3 11. hxg3 h6 12. Bc4 e6 13. Ne4 Bg7 14. d4 Nd7 15. c3 {[#]} f5 $146 ({Predecessor:} 15... Nf6 16. Nxf6+ Bxf6 17. Rxh6 Rxh6 18. Bxh6 Ke7 19. Bf4 Bd7 20. g4 g5 21. Bg3 Rh8 {1-0 (46) Solodovnichenko,Y (2554)-Burmakin,V (2495) La Roda 2019}) 16. Nd6+ Ke7 17. Nxc8+ (17. Bf4 {is interesting.} g5 18. Nxc8+ Rhxc8 19. Be3) 17... Raxc8 18. O-O Nb6 19. Bb3 Rhe8 20. Re1 Kd7 21. Re2 g5 22. Bd2 Re7 23. f3 Rce8 24. Rd1 Kc7 25. Rde1 {[%cal Re2e6]} Nd5 26. Kf2 (26. a4 {keeps more tension.} Kd6 27. Kf1 a5 28. Bc2) 26... b5 27. a4 {Threatens to win with axb5.} a6 28. Bc2 Kd6 {The position is equal.} 29. Kf1 e5 30. dxe5+ Bxe5 31. axb5 axb5 32. Bxf5 Bxg3 33. Rxe7 Rxe7 34. Rxe7 Nxe7 {Weighted Error Value: White=0.08 (flawless) /Black=0.07 (flawless)} 1/2-1/2

[Event "Svetozar Gligoric Masters 2022"]
[Site "Belgrade"]
[Date "2022.07.21"]
[Round "7.7"]
[White "Sedlak, Nikola"]
[Black "Radovanovic, Nikola"]
[Result "1/2-1/2"]
[ECO "D02"]
[WhiteElo "2480"]
[BlackElo "2422"]
[Annotator "TA"]
[PlyCount "180"]
[EventDate "2022.07.18"]
[EventCountry "SRB"]
[SourceTitle "playchess.com"]
[Source "ChessBase"]
[SourceQuality "1"]
[TimeControl "40/5400+30:900+30"]

{[%evp 13,180,0,0,0,2,0,0,0,0,0,0,7,0,7,6,2,49,54,41,49,57,47,44,40,62,56,69,59,78,42,37,43,59,67,68,32,32,30,94,102,169,189,189,181,215,215,215,197,195,170,143,123,132,18,18,19,19,37,26,27,26,0,0,0,0,0,0,0,0,0,0,0,0,0,60,62,69,67,147,63,90,92,72,64,132,0,0,0,188,190,187,185,171,183,189,184,193,149,149,138,162,0,0,0,217,197,203,187,138,166,140,64,64,64,64,63,92,92,92,92,92,92,92,0,0,0,0,0,0,0,0,0,92,92,1216,1216,1216,1209,1177,948,956,43,1220,1141,929,773,639,0,0,0,0,0,0,0,0,0,0,0,0,0,0,0,0,0,0,0,0,0,0]} 1. Nf3 d5 2. g3 g6 3. Bg2 Bg7 4. d4 Nf6 5. O-O O-O 6. c3 Nbd7 7. a4 a5 8. Re1 {D02: 1 d4 d5 2 Nf3 sidelines, including 2...Nf6 3 g3 and 2...Nf6 3 Bf4.} Re8 9. Bf4 c6 10. Nbd2 Nh5 11. Be3 {[#]} e5 $146 ({Predecessor:} 11... Nhf6 12. h3 e5 13. dxe5 Nxe5 14. Nxe5 Rxe5 15. Bd4 Re8 16. Kh2 Bf5 17. Qb3 Qc7 {½-½ (30) Bryndin,A (2274)-Slizhevsky,A (2323) St Petersburg 2002}) 12. dxe5 Nxe5 13. Nxe5 Bxe5 14. Bc5 Bd6 (14... Nf6 $11 {should be considered.}) 15. Bxd6 $14 Qxd6 16. e4 Nf6 17. exd5 Rxe1+ 18. Qxe1 {dxc6 is the strong threat.} cxd5 19. Qe3 {Inhibits Qb6.} Bf5 20. Qd4 $1 Qe6 21. h3 (21. c4 $5 {[%cal Rc4d5]}) 21... h5 $1 {Inhibits g4.} 22. Nf3 Be4 23. Re1 Re8 24. Qc5 b6 25. Qc7 Re7 (25... Rc8 $11 {keeps the balance.} 26. Qf4 Qf5) 26. Qf4 $16 {Black must now prevent Nd4. White is more active.} Kg7 (26... Rd7 $16) 27. Nd4 $36 {[%mdl 2048] White is really pushing.} Qd7 28. Bf1 Qc7 29. f3 Bf5 {Strongly threatening ...Qxf4.} (29... Qxf4 $2 30. gxf4 Kf8 31. fxe4 $18) 30. Rxe7 (30. Nxf5+ gxf5 31. Rxe7 Qxe7) 30... Qxe7 31. Nxf5+ gxf5 {[%mdl 4096] Endgame KQB-KQN} 32. Qg5+ Kf8 33. Qxf5 (33. Qh6+ $1 $16 Ke8 34. Bb5+ Kd8 35. Qh8+ Kc7 36. Kg2 (36. Qa8 Qe1+ 37. Kg2 Qd2+ 38. Kg1 Qe1+ 39. Kg2 Qd2+ 40. Kg1 Qe1+ $11)) 33... Qe3+ $11 34. Kh2 h4 {[%mdl 64] Decoy} 35. gxh4 (35. Qxf6 Qf2+ 36. Kh1 Qxf1+ 37. Kh2 Qf2+ 38. Kh1 Qe1+ 39. Kg2 Qxg3+ 40. Kh1 Qxh3+ 41. Kg1 Qg3+ 42. Kh1 h3 43. Qh6+ Kg8 $19) 35... Qf2+ $1 36. Bg2 Qxh4 37. Qe5 Nh5 $1 38. Qb8+ Kg7 39. Qxb6 Qg3+ 40. Kh1 Nf4 {[%csl Gf4,LRg2,LRh3][%cal Rg3g2]} 41. Qd4+ Kf8 {[%csl Gf4][%cal Rg3g2]} 42. Qd2 Ke7 43. Qe3+ Kd7 (43... Kf8 $1 $11 44. Qd2 f6) 44. Bf1 $14 Nxh3 45. Bxh3+ Qxh3+ {KQ-KQ} 46. Kg1 Qf5 $1 47. Qa7+ Ke6 48. Qb6+ (48. Qxa5 Qg5+ 49. Kf2 Qd2+ 50. Kf1 Qd1+ 51. Kg2 Qd2+ 52. Kh3 Qh6+ 53. Kg4 Qg6+ 54. Kh4 Qh6+ 55. Kg4 Qg6+ 56. Kh4 Qh6+ 57. Kg4 $11) 48... Ke5 (48... Ke7 $14) 49. Qd4+ (49. Qxa5 $6 Qg5+ 50. Kh2 Qh6+ 51. Kg2 (51. Kg3 Qg6+ 52. Kh2 Qh6+ 53. Kg3 Qg6+ 54. Kh2 Qh6+ $11) 51... Qg6+ 52. Kh1 (52. Kh3 Kf4 53. Kh2 Qg3+ 54. Kh1 Qe1+ 55. Kh2 Qd2+ 56. Kg1 Kxf3) 52... Qh6+ 53. Kg2 Qg6+ 54. Kh2 (54. Kh3 Kf4 55. Kh2 Qg3+ 56. Kh1 Qe1+ 57. Kh2 Qd2+ 58. Kh1 Kxf3) 54... Qh6+ 55. Kg3 Qg6+ 56. Kh2 Qh6+ $11) ({Only move:} 49. Qb8+ $1 $16 Kf6 50. Kf2) 49... Kd6 $11 50. b4 axb4 $2 (50... Qg6+ $11 51. Kf2 Qc2+ 52. Kg3 Qg6+ 53. Kh3 Qh7+ 54. Kg4 Qg6+ 55. Kh4 Qh7+ 56. Kg5 Qg6+ 57. Kf4 Qh6+ 58. Kg3 Qg6+ 59. Kf2 Qc2+ 60. Kg1 Qc1+ 61. Kg2 Qc2+ 62. Qf2 Qg6+ 63. Kh3 Qh5+ 64. Kg3 (64. Kg2 Qg6+ 65. Kh3 Qh5+ 66. Kg3 Qg5+ 67. Kh3 Qh5+ $11) 64... Qg5+ 65. Kh3 Qh5+ 66. Kg3 (66. Kg2 Qg6+ 67. Kh3 Qh5+ $11) 66... Qg5+ 67. Kh3 Qh5+) 51. Qxb4+ $18 ({Inferior is} 51. cxb4 Qxf3 52. Kh2 f5 $11) 51... Kc6 52. Kf2 Qc2+ 53. Kg3 $1 Qg6+ 54. Qg4 $1 Qd6+ 55. Kg2 Qe5 56. Kf2 {Against Qe2+} f5 57. Qb4 ({Better is} 57. Qd4 $18 Qh2+ 58. Ke3) 57... Qh2+ $11 58. Ke3 {Hoping for Qb5+.} Qe5+ $2 (58... Qg1+ $1 $11 59. Kf4 Qh2+ 60. Kg5 Qg3+ 61. Kxf5 Qxf3+ 62. Kg6 Qd3+ 63. Kg7 Qg3+ 64. Kh6 Qe3+ 65. Kh5 Qe2+ 66. Qg4 Qe5+ 67. Kg6 Qe4+ 68. Kg5 Qe3+ 69. Kh4 Qe1+ 70. Qg3 Qe4+ 71. Qg4 Qe1+ 72. Qg3 Qe4+ 73. Qg4 Qe1+) 59. Kd3 $18 {And now Qb5+ would win.} Qe1 60. Qb5+ Kd6 61. Qb6+ Kd7 {( -> ...Qd1+)} 62. Qf6 (62. Qd4 $1 $16 {[%cal Rd4d5]}) 62... f4 $14 63. Qxf4 {Threatens to win with Kd4.} Qd1+ 64. Qd2 Qxf3+ 65. Kc2 Qe4+ 66. Kb3 $1 Qc4+ 67. Ka3 $1 Kc6 68. Qd4 (68. Qh6+ $16 Kd7 69. Qg7+ Kc6 70. Qf6+ Kb7 71. Qd4) 68... Qf1 $1 $11 69. Kb4 {Intending Qc5+ and mate.} Qb1+ 70. Ka5 Qb8 71. Qe3 Qa8+ 72. Kb4 Qb7+ (72... Qf8+ $11 73. Kb3 Qb8+ 74. Kc2 Qh2+ 75. Qd2 Qh7+ 76. Kb2 Qb7+ 77. Kc1 Qg7) 73. Ka3 $16 Qb1 $2 {[%mdl 8192]} (73... Qd7 $16 74. Qh6+ Kb7) 74. Qe6+ $18 Kc5 75. Qc8+ $1 Kd6 {[#]} 76. a5 $1 Qb5 {[#]} 77. Qf8+ $2 (77. Qd8+ $1 $18 Kc6 78. Qe8+ Kc5 79. Qe7+ Kc6 80. Qe8+ Kc5 81. Qf8+ Kc6 82. Qb4) 77... Kd7 $2 {[%mdl 8192]} (77... Kc7 $14) 78. Qb4 Kc6 79. Qa4 {White wants to mate with a6.} Kc5 80. a6 $2 (80. Qd4+ $18 Kc6 81. Qb4) 80... Qf1 $1 $11 {The position is equal.} 81. Qb4+ Kc6 82. Qb7+ Kc5 83. Qe7+ Kb5 84. Qd7+ Kc5 85. Qe7+ Kb5 86. Qb4+ Kxa6 87. Qd6+ Ka5 88. Qxd5+ Qb5 89. Qxb5+ Kxb5 90. c4+ Kxc4 {Black escapes into a draw.  Weighted Error Value: White=0.12 (very precise) /Black=0.23 (precise)} 1/2-1/2

[Event "Svetozar Gligoric Masters 2022"]
[Site "Belgrade"]
[Date "2022.07.21"]
[Round "7.8"]
[White "Maksimovic, Bojan"]
[Black "Harikrishnan.A.Ra"]
[Result "1-0"]
[ECO "C67"]
[WhiteElo "2465"]
[BlackElo "2396"]
[Annotator "TA"]
[PlyCount "107"]
[EventDate "2022.07.18"]
[EventCountry "SRB"]
[SourceTitle "playchess.com"]
[Source "ChessBase"]
[SourceQuality "1"]
[TimeControl "40/5400+30:900+30"]

{[%evp 20,107,25,17,25,28,21,13,18,19,48,21,21,21,26,20,22,16,19,15,16,11,14,12,10,0,0,0,5,0,6,0,14,0,31,0,4,2,8,16,9,6,56,51,90,95,103,105,93,61,64,0,94,121,110,91,91,84,147,38,116,118,118,122,115,126,354,354,278,326,291,274,1378,435,308,308,308,300,875,879,879,872,842,828,778,754,695,585,454,377]} 1. e4 e5 2. Nf3 Nc6 3. Bb5 Nf6 {[%cal Bg8f6,Bf6e4,Be4d6,Bd6f5,Bf5h4,Bh4f3][%mdl 32]} 4. O-O {[%cal Bh1f1,Bf1e1,Be1e5][%mdl 32]} Nxe4 5. Re1 Nd6 6. Nxe5 Nxe5 7. Rxe5+ Be7 8. Bf1 O-O 9. d4 Bf6 10. Re1 Nf5 11. c3 d5 {C67: Ruy Lopez: Berlin Defence: 4 0-0 Nxe4.} 12. Nd2 {[#]} Bg5 $146 ({Predecessor:} 12... Re8 13. Nf3 Rxe1 14. Qxe1 Nd6 15. Bd3 Bf5 16. Bxf5 Nxf5 17. Bf4 Qd7 18. Ne5 Bxe5 19. Qxe5 {½-½ (52) Caruana,F (2820)-Carlsen,M (2847) chess24.com INT 2021}) 13. Nf3 Bxc1 {The position is equal.} 14. Qxc1 Nh4 15. Qf4 Nxf3+ 16. Qxf3 Qd6 17. Re5 c6 18. Rae1 Bd7 19. Bd3 Rae8 20. Qh5 {[%csl Gd3][%cal Rh5h7]} g6 21. Qh6 Rxe5 22. dxe5 Qe7 23. Re3 f5 24. Qf4 (24. exf6 {is interesting.} Qxf6 25. Rf3 Qd6 26. Rxf8+ Qxf8 27. Qg5) 24... Be6 25. Re1 c5 26. Rd1 a6 27. Be2 (27. h4 {keeps more tension.} Kg7 28. b4 h6 29. bxc5 Qxc5 30. Rb1) 27... g5 28. Qd2 f4 29. Bf3 Rd8 30. Qe2 d4 ({Better is} 30... Kg7 $11) 31. h4 Bxa2 32. cxd4 Bb3 33. Rd2 {aiming for d5.} cxd4 34. hxg5 Qxg5 35. Qe4 ({White should play} 35. Bxb7 $14 Rd7 36. Bc6) 35... Re8 (35... Rc8 $11 {keeps the balance.} 36. Qe1 (36. Qxb7 $2 Rc1+ 37. Rd1 Bxd1 $19) 36... Rd8) 36. Qxb7 $16 Bf7 37. Bd5 Bxd5 38. Qxd5+ {[%mdl 4096] Endgame KQR-KQR} Kg7 (38... Kh8 $142 39. Rxd4 (39. Qxd4 Qxe5 40. b4 Re6 $14) 39... Qxe5) 39. Re2 ({Don't play} 39. Qxd4 $6 Qxe5 40. Qd7+ Kh8 $14) (39. Rxd4 $16 {Hoping for Qb7+.} Rxe5 40. Qb7+ Re7 41. Rd7) 39... Rd8 (39... f3 $14 40. Qxf3 Qc1+ 41. Kh2 Qh6+ 42. Kg1 Qc1+ 43. Kh2 Qh6+ 44. Qh3 (44. Kg1 Qc1+ $14) 44... d3 45. Qxh6+ Kxh6) 40. Qb7+ $1 Kh8 41. e6 $1 $36 {[%cal Be5e6,Be6e7][%mdl 2080] And now e7 would win. White is really pushing. White is more active.} d3 42. Rd2 a5 $2 {A mistake that costs the game.} (42... Qg6 $16) 43. Qe4 $18 Qg6 (43... f3 $2 {[#]} 44. Qxf3 $1 a4 45. g3 $1 $18 (45. Rxd3 Qc1+ 46. Kh2 Qh6+ 47. Qh3 Qxh3+ 48. Rxh3 Re8 $18)) 44. e7 Re8 45. Qxf4 {[%cal Od2d3] Threatens to win with Rxd3!} Kg7 $2 (45... Qg7 46. Rxd3 Qxe7) 46. Qe5+ (46. Qd4+ $142 Qf6 47. Qg4+ (47. Rxd3 Qxd4 48. Rxd4 Rxe7 $16) (47. Qxd3 Rxe7 48. g3 Qe5 $16) 47... Kh8 48. Rxd3 Qxe7 49. Re3) 46... Qf6 47. Qxa5 Qxe7 48. Qc3+ ({Not} 48. Rxd3 Qe1+ 49. Qxe1 Rxe1+ 50. Kh2 Re2 $16) 48... Kf7 $2 (48... Qf6 49. Rxd3 Qxc3 50. bxc3 (50. Rxc3 Re1+ 51. Kh2 Re2 $16) 50... Re1+ 51. Kh2 Kg6) 49. Rxd3 {White is clearly winning.} Qe1+ 50. Qxe1 Rxe1+ 51. Kh2 Re2 52. Rf3+ Kg6 53. b4 Rb2 54. Rf4 {Weighted Error Value: White=0.21 (precise) /Black=0.21 (precise)} 1-0

[Event "Svetozar Gligoric Masters 2022"]
[Site "Belgrade"]
[Date "2022.07.21"]
[Round "7.9"]
[White "Stoyanov, Tsvetan"]
[Black "Erdogmus, Yagiz Kaan"]
[Result "0-1"]
[ECO "B14"]
[WhiteElo "2450"]
[BlackElo "2373"]
[Annotator "TA"]
[PlyCount "90"]
[EventDate "2022.07.18"]
[EventCountry "SRB"]
[SourceTitle "playchess.com"]
[Source "ChessBase"]
[SourceQuality "1"]
[TimeControl "40/5400+30:900+30"]

{[%evp 17,90,40,31,32,29,32,23,32,33,33,27,0,0,-27,-15,-33,-26,-22,-21,-52,-27,-75,-41,-35,-20,-32,-32,-81,-85,-109,-100,-103,-116,-137,-129,-126,-106,-104,-118,-141,-147,-171,-173,-182,-172,-211,-175,-164,-165,-195,-188,-237,-236,-230,-205,-243,-242,-299,-282,-297,-302,-408,-369,-381,-374,-641,-636,-630,-315,-630,-621,-604,-572,-709,-656]} 1. Nf3 c5 2. c4 Nc6 3. e3 Nf6 4. Nc3 e6 5. d4 cxd4 6. exd4 d5 7. c5 Ne4 8. Bb5 Nxc3 9. bxc3 Bd7 10. O-O {B14: Caro-Kann: Panov-Botvinnik Attack with 5...e6 and 5...g6.} Be7 11. Rb1 O-O 12. Bf4 {White has an edge.} b6 13. cxb6 axb6 14. a4 Na5 15. Bxd7 (15. Bd3 $5 {[%cal Rf3e5]}) 15... Qxd7 16. Rxb6 (16. Ne5 {with more complications.} Qc8 17. Qg4 Bf6 18. Rxb6 Qxc3 19. Nd7) 16... Nc4 17. Rb5 Qa7 {[#]} 18. a5 $146 ({Predecessor:} 18. Ne5 Qxa4 19. Qxa4 Rxa4 20. Rb7 Nxe5 21. Bxe5 Bf6 22. f4 Bxe5 23. fxe5 Rc4 24. Rf3 {½-½ (24) Arguelles,H (2175)-More Linares,Y (2058) Havana 2009}) 18... Bd6 (18... Qd7 $5 {[%cal Rd7b5]} 19. Qb1 Qe8 $11) 19. Qc1 (19. Be5 $11 {was preferrable.}) 19... Qd7 {Black is more active.} 20. Bxd6 Nxd6 21. Rb4 Rxa5 22. Qf4 (22. Ne5 $15 Qc7 23. Nd3) 22... Ra3 $17 {Black keeps a firm grip on the game.} 23. Rfb1 Rxc3 24. h4 Qc7 25. Ne5 f6 26. Nf3 Ne4 27. Qxc7 Rxc7 28. Rb6 Kf7 29. Rb7 Rfc8 30. Rxc7+ Rxc7 $19 {[%mdl 4096] Endgame KRN-KRN} 31. Ne1 Nd2 32. Rd1 Nb3 33. Rd3 Rc1 34. Kf1 (34. Rxb3 {keeps fighting.} Rxe1+ 35. Kh2) 34... Rb1 35. f3 h5 36. Kf2 Rb2+ 37. Ke3 Na5 {[#] ...Nc4+ is the strong threat.} 38. Rd1 Nc4+ 39. Kf4 Re2 {And now ...Ne3 would win.} 40. Ra1 Ne3 {[%cal Oe2e1] aiming for ...Rxe1!} 41. Ra7+ $2 (41. Kg3) 41... Kg8 42. Nd3 Nxg2+ 43. Kg3 Ne3 {[#] ( -> ...Nf1+). Black is clearly winning.} 44. Nc5 Nf5+ 45. Kf4 Nxd4 {Weighted Error Value: White=0.32/Black=0.07 (flawless)} 0-1

[Event "Svetozar Gligoric Masters 2022"]
[Site "Belgrade"]
[Date "2022.07.21"]
[Round "7.10"]
[White "Makaraci, Tunahan"]
[Black "Atalik, Suat"]
[Result "0-1"]
[ECO "B22"]
[WhiteElo "2130"]
[BlackElo "2446"]
[Annotator "TA"]
[PlyCount "134"]
[EventDate "2022.07.18"]
[EventCountry "SRB"]
[SourceTitle "playchess.com"]
[Source "ChessBase"]
[SourceQuality "1"]
[TimeControl "40/5400+30:900+30"]

{[%evp 20,134,35,12,46,36,49,42,84,62,77,53,108,58,86,57,91,86,83,64,91,110,106,85,136,59,93,0,0,0,0,0,52,-2,30,35,37,34,83,39,634,210,212,208,223,227,217,-160,-106,-116,-97,-112,-98,-101,-106,-119,-68,-115,-108,-110,-107,-106,-92,-91,-81,-88,-91,-93,-86,-103,-95,-83,-83,-96,-94,-136,-28,-50,-52,-63,-72,-46,-79,-172,-174,-201,0,0,0,-190,-208,-197,0,0,0,0,0,-8,-8,-8,-8,-8,-8,-8,-14,-6697,-6486,-29980,-29981,-29981,-29982,-29982,-29982,-29982,-29980,-29979,-29974]} 1. e4 c5 2. Nf3 Nc6 3. c3 d5 4. exd5 Qxd5 5. d4 e6 6. a3 Nf6 7. Be3 cxd4 8. cxd4 Be7 9. Nc3 Qd6 10. Bd3 O-O 11. O-O Bd7 {B22: Sicilian: 2 c3.} 12. Qe2 Rad8 13. Rad1 {[#]} Qb8 $146 {White is slightly better.} ({Predecessor:} 13... g6 14. Bb1 Nd5 15. Ne4 Qc7 16. Ba2 Qa5 17. Bg5 Bxg5 18. Nfxg5 f6 19. Nf3 Qc7 20. Rfe1 Bc8 21. Nc3 {½-½ (21) Yordanov,N (2177)-Cvetkovic,S (2325) Paracin 2014}) 14. Rfe1 Rfe8 15. h3 {[%cal Bh2h3,Bh3h4][%mdl 32]} g6 (15... Rc8 $14) 16. Bb1 (16. Bc4 $16) 16... Nd5 $14 17. Ne4 Qc7 18. Ba2 Bc8 19. h4 Qa5 20. Bg5 Kg7 21. Bd2 Qb6 (21... Qc7 $142) 22. Nc3 (22. h5 $16) 22... Kg8 23. Nxd5 (23. Bh6 $16) 23... exd5 $11 24. Bc3 Bg4 25. Qd3 Qa6 (25... Qc7 $11) 26. Qe3 (26. Qxa6 $1 $14 bxa6 27. Bb3) 26... Rf8 27. Qf4 h5 28. Re3 Kh7 (28... Kg7 $14 {was preferrable.}) 29. Bb1 f6 $2 {[%mdl 8192]} (29... Rd7 $14) 30. Bb4 $2 (30. Bd2 {[%cal Of4h6] Qh6+! would kill now.} Ne5 31. Rxe5 fxe5 32. Qh6+ Kg8 33. Bxg6) 30... Bxb4 $18 31. axb4 Qa4 32. Rde1 {[%cal Oe3e7] Intending Re7+! and mate.} Qxb4 {[#]} 33. R3e2 $2 (33. Ng5+ $1 $18 {[%mdl 512]} Kg8 34. Bxg6 Nxd4 35. Kh1 (35. Qc7 Rd7 $15)) 33... Qd6 (33... Kg7 $142 34. Kh2 Rf7) 34. Qe3 Rd7 {Active counter play!} 35. Qd3 Rg8 36. g3 Rgg7 37. Kg2 Bf5 (37... Qb4 $17 38. Re8 a6) 38. Qb3 (38. Qd1 $15 Bg4 39. Qb3) 38... Bxb1 $17 39. Rxb1 Qb4 40. Qd3 Qc4 41. Qd2 Rge7 42. Rbe1 Rxe2 (42... Kg7 {with more complications.} 43. Re6 Rxe6 44. Rxe6 Kf7) 43. Rxe2 Qb4 (43... Kg7 {looks sharper.} 44. Re6 Kf7 45. Re1 Qb4) 44. Qf4 {[#]} Qd6 45. Qd2 Re7 46. Rxe7+ Qxe7 {[%mdl 4096] Endgame KQN-KQN} 47. Qc2 a5 (47... Qe4 $17 48. Qxe4 dxe4) 48. Qb3 $11 Nb4 49. Qa4 b6 50. Qb5 Qe6 51. b3 (51. Kh2 $17) 51... Kg7 $19 52. Qf1 Qe4 $2 (52... Kf7 $19 {White must now prevent ...Nc6.} 53. Qc1 Nc6) 53. Qb5 $11 Qe6 $2 (53... g5 $11 54. hxg5 Nd3 55. gxf6+ (55. Qd7+ Kg6 $15) 55... Kxf6 56. Qc6+ (56. Qxb6+ $2 Kf5 $19) 56... Kf7 57. Qd7+ Kg6 58. Qc6+ Kg7 59. Qc7+ Kh8 60. Qb8+ Kg7 61. Qc7+ Kh8 62. Qd8+ Kh7 63. Qd7+ Kg6 64. Qd6+ Kh7 65. Qd7+ Kg6) 54. Qf1 $1 $19 Kf7 55. Qc1 {[#]} Ke8 $2 ({Black should try} 55... Nc6 $1 $19 {Hoping for ...Ne7.} 56. Qh6 Ne7 57. Qh7+ Kf8 58. Qh6+ (58. Qh8+ $2 Ng8 $17) 58... Kg8) 56. Qc7 $1 $11 Nd3 {Threatens to win with ...Qe2.} 57. Qb8+ Kf7 {Strongly threatening ...Qe2.} 58. Qc7+ Qe7 59. Qxb6 Qe2 $36 {[%mdl 2048] Black is more active.} 60. Qc7+ Kg8 61. Qd8+ Kg7 62. Qd7+ $2 {[%mdl 8192]} (62. Qxd5 Qxf2+ 63. Kh3 Qf1+ 64. Kh2 Qf2+ 65. Kh3 Qe2 66. Qb7+ Kh6 $19) (62. Ng1 $11 Ne1+ 63. Kh1 Qe4+ 64. f3 Nxf3 65. Nxf3 Qxf3+ 66. Kh2) 62... Kh6 $19 63. Qxd5 Qxf2+ {Black mates.} 64. Kh3 Qf1+ 65. Kh2 Qe2+ 66. Kh1 Nf2+ 67. Kg1 Ne4 {A wild game.  Weighted Error Value: White=0.31/Black=0.37} 0-1